{"text_format":"1","workbook":"xlsx","n_sheets":6,"sheets":["Instructions","Documents","Diff-input FDA","SE-input FDA","Solver Return Codes","Data"],"not_rendered":{"charts":2,"images":70,"macros":1,"external_links":0,"defined_names":220,"comments":0,"pivot_tables":0},"unopened":[],"bounds":{"document_bytes":16777216,"sheet_cells":100000,"rows_first":2000,"rows_last":500,"rows_between":2000,"halvings":0,"cell_chars":16384,"cell_head_chars":4096},"cells_cut":0,"cells_raw":0,"read":"whole","date_system":"1900"}

{"sheet":"Instructions","index":0,"n_rows":34,"n_cols":1,"rows_kept":34,"cut":false,"hidden":false,"merged":[]}
["Instructions for Using the FDA Calculator"]
["Warning: This Excel file does not function properly on an Apple computer nor on a PC running Linux. "]
["The user interfaces and VBA code were developed with Excel 2019 on a Windows 10 PC and may not function properly with older versions of Excel or Windows."]
[]
["Choose the Excel worksheet according to the type of input: \"Diff-input FDA\" for differential input or \"SE-input FDA\" for single-ended input."]
["If the single-ended input is selected, the Excel Solver must be added to the Excel workbook.   Click on Excel File/Options/Add-ins to invoke the window shown below:"]
[]
["     Select \"Excel Add-ins\" and click on the Go button shown above."]
["     Select \"Solver Add-in\" and click OK."]
[]
["     The calculator uses the Excel solver to determine the Rgp and Rt values to match Zin to Rs and to achieve the target gain.  "]
["     There is no closed-form solution for Rgp and Rt, so a GRG (Generalized Reduced Gradient) search algorithm is used to calculate these values."]
["     If the GRG algorithm does not converge, the error message returned by the algorithm will be displayed in the schematic text box for error messages."]
[]
["Instructions for the Diff-input FDA and SE-input FDA worksheets"]
[]
["In the schematic area with the gray background, enter desired values in the text boxes, check boxes, and radio buttons with a white background.  Select the TI FDA device in the list box.  "]
["    Some devices have significantly different Iq, headroom, and max. output specs based on the total supply voltage."]
["    In these cases, select the total supply voltage after the \"@\" in the device name that is closest to the desired supply voltage."]
["    The calculator will interpolate the relevant specs if the desired total supply voltage does not match one of the options."]
[]
["Click the \"Calculate\" button to calculate the values in the gray boxes and in the three tables.  "]
["If any problems are detected, such as violations of headroom specs or max output current, an error will be displayed and the text boxes with the violating values will be highlighted."]
[]
["If a  resistor tolerance is selected, the nearest standard value for the selected resistor tolerance will be calculated for all of the resistors, including the resistor values entered by the user."]
["Using the standard resistor values, the calculator will display the actual signal gain and the input impedance, Zin, seen by the source after Rs.  If the errors compared to the ideal values are unacceptable,  select the \"<1% E192\" tolerance."]
["If the actual gain and/or Zin errors are still unacceptable, try different Rf and/or target gain values and recalculate the errors with the standard resistor values."]
[]
["Note that the ambient temperature entered in the \"Temperature\" text box, will be used in the Output Noise Analysis table."]
["The increase temperature of the resistors and the FDA due to power dissipation will not be used in the noise calculations."]
["In the Output Noise Analysis, the effective noise bandwidth is calculated based on the small-signal bandwidth of the device and the actual signal gain.  "]
["Enter a different value to immediately recalculate the noise analysis with the desired effective noise bandwidth.  "]
[]
["For any bug reports or suggestions, email Wayne Comeaux at comeaux_wayne@ti.com."]

{"sheet":"Documents","index":1,"n_rows":11,"n_cols":1,"rows_kept":11,"cut":false,"hidden":false,"merged":[]}
["Double-click the embedded PDF documents to view them. "]
[]
["See equations 7 - 9 in the document below for the calculation of the dependent parameters for a single-ended input FDA:"]
[]
[]
[]
[]
[]
[]
[]
["See \"Noise analysis\" section in the document below for the output-noise equations:"]

{"sheet":"Diff-input FDA","index":2,"n_rows":23,"n_cols":21,"rows_kept":23,"cut":false,"hidden":false,"merged":[[14,17,14,18],[15,17,15,18],[0,0,0,27]]}
["TI Diff-to-Diff FDA Calculator"]
[null,null,null,null,null,null,null,null,null,null,null,null,null,null,null,null,null,"FDA Power Dissipation Analysis"]
[null,null,null,null,null,null,null,null,null,null,null,null,null,null,null,null,null,"Circuit Element","Avg. Power (mW)","Iq current is per channel and reduces with output current. "]
[null,null,null,null,null,null,null,null,null,null,null,null,null,null,null,null,null,"FDA Iq",123,"Simulate the circuit to determine total power dissipation under operating conditions."]
[null,null,null,null,null,null,null,null,null,null,null,null,null,null,null,null,null,"FDA Output Stage",34.547373124819678]
[null,null,null,null,null,null,null,null,null,null,null,null,null,null,null,null,null,"Feedback Load",0.12499999999999999,"Feedback Load Power < 0 indicates that the signal source is delivering "]
[null,null,null,null,null,null,null,null,null,null,null,null,null,null,null,null,null,"R Load",1.2499999999999998,"power to the FDA outputs and/or load through the feedback networks."]
[]
[null,null,null,null,null,null,null,null,null,null,null,null,null,null,null,null,null,"FDA Output Currents"]
[null,null,null,null,null,null,null,null,null,null,null,null,null,null,null,null,null,"Peak Currents","Current (mA)"]
[null,null,null,null,null,null,null,null,null,null,null,null,null,null,null,null,null,"Iout Max",4.25]
[null,null,null,null,null,null,null,null,null,null,null,null,null,null,null,null,null,"Iout Min",-6.75]
[]
[null,null,null,null,null,null,null,null,null,null,null,null,null,null,null,null,null,"Output Noise Analysis"]
[null,null,null,null,null,null,null,null,null,null,null,null,null,null,null,null,null,"FDA Noise Gain (V/V):",null,2.8]
[null,null,null,null,null,null,null,null,null,null,null,null,null,null,null,null,null,"Effective Noise Bandwidth (MHz):",null,117.75,"Noise "]
[null,null,null,null,null,null,null,null,null,null,null,null,null,null,null,null,null,"Noise Source","Vflatband (nV/√Hz)","Vrms (µV)","Power (%)"]
[null,null,null,null,null,null,null,null,null,null,null,null,null,null,null,null,null,"FDA voltage noise",3.64,{"$f":"EoutNoise*SQRT(ENB*1000000)/1000","v":39.498612633863488},{"$f":"T18^2/total_n^2","v":0.22144796106623413}]
[null,null,null,null,null,null,null,null,null,null,null,null,null,null,null,null,null,"FDA current noise",0.70710678118654746,{"$f":"IoutNoise*SQRT(ENB*1000000)/1000","v":7.6730046266114034},{"$f":"T19^2/total_n^2","v":8.3567791128122387E-3}]
[null,null,null,null,null,null,null,null,null,null,null,null,null,null,null,null,null,"Rs, Rt, and Rg noise",5.4428103035104947,{"$f":"RgOutNoise*SQRT(ENB*1000000)/1000","v":59.061388960978562},{"$f":"T20^2/total_n^2","v":0.49512552417061312}]
[null,null,null,null,null,null,null,null,null,null,null,null,null,null,null,null,null,"Rf noise",4.0568312757619092,{"$f":"RfOutNoise*SQRT(ENB*1000000)/1000","v":44.02176018743458},{"$f":"T21^2/total_n^2","v":0.2750697356503406}]
[null,null,null,null,null,null,null,null,null,null,null,null,null,null,null,null,null,"Total",{"$f":"SQRT(SUM(S18^2+S19^2+S20^2+S21^2))","v":7.7350930181866593},{"$f":"SQRT(SUM(T18^2+T19^2+T20^2+T21^2))","v":83.935561212158461},{"$f":"SUM(U18:U21)","v":1}]
[null,null,null,null,null,null,null,null,null,null,null,null,null,null,null,null,null,"See the Documents worksheet for the equations used to calculate the output noise."]

{"sheet":"SE-input FDA","index":3,"n_rows":33,"n_cols":23,"rows_kept":33,"cut":false,"hidden":false,"merged":[[25,17,25,18],[24,17,24,18],[0,0,0,27],[2,17,2,22],[7,17,7,22],[4,20,4,21],[4,17,4,19],[1,17,1,22]]}
["TI SE-to-Diff FDA Calculator"]
[null,null,null,null,null,null,null,null,null,null,null,null,null,null,null,null,null,"Excel Solver for Rt and Rgp with Terminated Input"]
[null,null,null,null,null,null,null,null,null,null,null,null,null,null,null,null,null,"Excel Solver Saved Set-up"]
[null,null,null,null,null,null,null,null,null,null,null,null,null,null,null,null,null,{"$f":"MIN($W$7)","v":1.174699562718929E-13},{"$f":"COUNT($U$7:$V$7)","v":2},{"$f":"Ind_vars>=10","v":true},{"$f":"Ind_vars<=100000","v":true},{"$f":"{32767,32767,0.001,0.01,FALSE,FALSE,TRUE,1,2,1,0.0001,TRUE}","v":32767},{"$f":"{0,0,1,1000,0,TRUE,FALSE,0.075,0,0,FALSE,30}","v":0}]
[null,null,null,null,null,null,null,null,null,null,null,null,null,null,null,null,null,"User Inputs",null,null,"Independent Vars"]
[null,null,null,null,null,null,null,null,null,null,null,null,null,null,null,null,null,"Rs","Rf","Target Gain","Rt","Rgp","Cost Function"]
[null,null,null,null,null,null,null,null,null,null,null,null,null,null,null,null,null,49.9,499,2,57.681360127699996,240.79172615608437,{"$f":"((Zin-Rs)/Rs)^2 + ((ActualGain-G)/G)^2","v":1.174699562718929E-13}]
[null,null,null,null,null,null,null,null,null,null,null,null,null,null,null,null,null,"Dependent Parameters"]
[null,null,null,null,null,null,null,null,null,null,null,null,null,null,null,null,null,"Rs||Rt","β+","β-","Za","Zin","Actual Gain"]
[null,null,null,null,null,null,null,null,null,null,null,null,null,null,null,null,null,{"$f":"1/(1/Rs+1/Rt)","v":26.754633581093074},{"$f":"Rg/(Rf+Rg)","v":0.32548583289410987},{"$f":"(Rg+RsPRt)/(Rf+Rg+RsPRt)","v":0.34902828294548283},{"$f":"(Rg+Rf)*(Bp+Bn)/(Bn+1)","v":369.89584902111574},{"$f":"1/(1/Za + 1/Rt)","v":49.899983489771138},{"$f":"2*(Rf/(Rg+RsPRt))*(Rt/(Rs+Rt))","v":1.9999998211431713}]
[]
[null,null,null,null,null,null,null,null,null,null,null,null,null,null,null,null,null,"FDA Power Dissipation Analysis"]
[null,null,null,null,null,null,null,null,null,null,null,null,null,null,null,null,null,"Circuit Element","Avg. Power (mW)","Iq current is per channel and reduces with output current.  "]
[null,null,null,null,null,null,null,null,null,null,null,null,null,null,null,null,null,"FDA Iq",123,"Simulate the circuit to determine total power dissipation under operating conditions."]
[null,null,null,null,null,null,null,null,null,null,null,null,null,null,null,null,null,"FDA Output Stage",157.79021513751684]
[null,null,null,null,null,null,null,null,null,null,null,null,null,null,null,null,null,"Feedback Load",7.3140149496063174,"Feedback Load Power < 0 indicates that the signal source and/or Vinn"]
[null,null,null,null,null,null,null,null,null,null,null,null,null,null,null,null,null,"R Load",17.583264960773132,"is delivering power to the FDA and/or load through the feedback networks."]
[]
[null,null,null,null,null,null,null,null,null,null,null,null,null,null,null,null,null,"FDA Output Currents"]
[null,null,null,null,null,null,null,null,null,null,null,null,null,null,null,null,null,"Peak Currents","Current (mA)"]
[null,null,null,null,null,null,null,null,null,null,null,null,null,null,null,null,null,"Iout Max",30.513999999999999]
[null,null,null,null,null,null,null,null,null,null,null,null,null,null,null,null,null,"Iout Min",-26.95]
[]
[null,null,null,null,null,null,null,null,null,null,null,null,null,null,null,null,null,"Output Noise Analysis"]
[null,null,null,null,null,null,null,null,null,null,null,null,null,null,null,null,null,"FDA Noise Gain (V/V):",null,2.8689138576779025]
[null,null,null,null,null,null,null,null,null,null,null,null,null,null,null,null,null,"Effective Noise Bandwidth (MHz):",null,118.40120663650075,"Noise "]
[null,null,null,null,null,null,null,null,null,null,null,null,null,null,null,null,null,"Noise Source","Vflatband (nV/√Hz)","Vrms (µV)","Power (%)"]
[null,null,null,null,null,null,null,null,null,null,null,null,null,null,null,null,null,"FDA voltage noise",3.7295880149812737,{"$f":"EoutNoise*SQRT(ENB*1000000)/1000","v":40.582511906797201},{"$f":"T28^2/total_n^2","v":0.22606710525405804}]
[null,null,null,null,null,null,null,null,null,null,null,null,null,null,null,null,null,"FDA current noise",0.70569256762417443,{"$f":"IoutNoise*SQRT(ENB*1000000)/1000","v":7.6788044451848521},{"$f":"T29^2/total_n^2","v":8.093693219990615E-3}]
[null,null,null,null,null,null,null,null,null,null,null,null,null,null,null,null,null,"Rs, Rt, and Rg noise",5.5404732000073791,{"$f":"RgOutNoise*SQRT(ENB*1000000)/1000","v":60.287173464042581},{"$f":"T30^2/total_n^2","v":0.49889525008022156}]
[null,null,null,null,null,null,null,null,null,null,null,null,null,null,null,null,null,"Rf noise",4.0527724140395547,{"$f":"RfOutNoise*SQRT(ENB*1000000)/1000","v":44.099156284189554},{"$f":"T31^2/total_n^2","v":0.26694395144572969}]
[null,null,null,null,null,null,null,null,null,null,null,null,null,null,null,null,null,"Total",{"$f":"SQRT(SUM(S28^2+S29^2+S30^2+S31^2))","v":7.8440828833899996},{"$f":"SQRT(SUM(T28^2+T29^2+T30^2+T31^2))","v":85.353284527507569},{"$f":"SUM(U28:U31)","v":0.99999999999999989}]
[null,null,null,null,null,null,null,null,null,null,null,null,null,null,null,null,null,"See the Documents worksheet for the equations used to calculate the output noise."]

{"sheet":"Solver Return Codes","index":4,"n_rows":22,"n_cols":2,"rows_kept":22,"cut":false,"hidden":true,"merged":[]}
["Return Value","Message"]
[0,"Solver found a solution. All constraints and optimality conditions are satisfied."]
[1,"Solver has converged to the current solution. All constraints are satisfied."]
[2,"Solver cannot improve the current solution. All constraints are satisfied."]
[3,"Stop chosen when the maximum iteration limit was reached."]
[4,"The Objective Cell values do not converge."]
[5,"Solver could not find a feasible solution."]
[6,"Solver stopped at user's request."]
[7,"The linearity conditions required by this LP Solver are not satisfied."]
[8,"The problem is too large for Solver to handle."]
[9,"Solver encountered an error value in a target or constraint cell."]
[10,"Stop chosen when the maximum time limit was reached."]
[11,"There is not enough memory available to solve the problem."]
[12,"Unused error code"]
[13,"Error in model. Please verify that all cells and constraints are valid."]
[14,"Solver found an integer solution within tolerance. All constraints are satisfied."]
[15,"Stop chosen when the maximum number of feasible [integer] solutions was reached."]
[16,"Stop chosen when the maximum number of feasible [integer] subproblems was reached."]
[17,"Solver converged in probability to a global solution."]
[18,"All variables must have both upper and lower bounds."]
[19,"Variable bounds conflict in binary or all different constraint."]
[20,"Lower and upper bounds on variables allow no feasible solution."]

{"sheet":"Data","index":5,"n_rows":58,"n_cols":26,"rows_kept":58,"cut":false,"hidden":false,"merged":[[1,14,1,19],[1,12,1,13],[1,10,1,11],[1,5,1,9],[1,2,1,4]]}
[]
[null,null,"Power Supply",null,null,"Speed",null,null,null,null,"Noise",null,"Precision",null,"Headroom at max supply in spec tables"]
["Device","Number of channels","Iq per channel\n(Typ) (mA)","Total supply voltage (Min)\n(+5V=5, +/-5V=10)","Total supply voltage (Max)\n(+5V=5, +/-5V=10)","Acl, min spec gain\n(V/V)","LSBW @ Acl (MHz)","SSBW @ Acl\n(MHz)","GBW\n(Typ)\n(MHz)","Slew rate\n(Typ) (V/us)","Vn at flatband\n(Typ) (nV/rtHz)","Ib noise at flatband\n(Typ) (pA/rtHz)","Vos (25 C)\n(Max) (mV)","Ib  (25 C)\n(Max) (nA)","Input Neg Headroom (V)","Input Pos Headroom (V)","Vocm Input Neg Headroom (V)","Vocm Input Pos Headroom (V)","Output Neg Headroom (V)","Output Pos Headroom (V)","Output current\n(Typ) (mA)","Operating temperature range (C)","Data Sheet URL","Architecture","Package Group","Description"]
["LMH3401",1,55,3.15,5,6.3,4000,7000,8000,18000,1.4,0,3.2,0,0.2,1.3,2,2,1.3,1.3,50,"-40 to 85","https://www.ti.com/product/LMH3401","Fully Differential ADC Driver,\nFixed Gain/Buffer,\nBipolar","UQFN|14","7-GHz, Ultra-Wideband, Fully Differential Amplifier"]
["LMH5401",1,55,3.15,5.25,2,4800,6200,8000,17500,1.25,3.5,5,150000,0.41,1.41,2,2,1.3,1.3,50,"-40 to 85","https://www.ti.com/product/LMH5401","Fully Differential ADC Driver,\nBipolar","UQFN|14","8-GHz Ultra wideband fully differential amplifier"]
["LMH6550",1,20,4.5,12,1,380,400,400,3000,6,1.5,5,16,0.4,1.9,1.31,1.31,1.31,1.31,75,"-40 to 85","https://www.ti.com/product/LMH6550","Fully Differential ADC Driver,\nBipolar","SOIC|8, VSSOP|8","400MHz, Differential, High Speed Op Amps"]
["LMH6551",1,12.5,3,12,1,340,370,370,2400,6,1.5,5,4,0.4,1.9,1.31,1.31,1.31,1.31,65,"-40 to 85","https://www.ti.com/product/LMH6551","Fully Differential ADC Driver,\nBipolar","SOIC|8, VSSOP|8","370MHz, Differential, High Speed Op Amp"]
["LMH6552",1,19,4.5,12,1,1250,1500,1500,3800,1.1000000000000001,19.5,16.5,110000,1.5,1.5,1.3,1.3,1.3,1.3,80,"-40 to 85","https://www.ti.com/product/LMH6552","Fully Differential ADC Driver,\nCurrent FB,\nBipolar","SOIC|8, WSON|8","1.5 GHz Fully Differential Amplifier"]
["LMH6553",1,29,4.5,12,1,670,900,900,2300,1.2,13.6,0,95000,1.7,1.7,1.36,1.36,1.3,1.3,120,"-40 to 125","https://www.ti.com/product/LMH6553","Fully Differential ADC Driver,\nCurrent FB","SO PowerPAD|8, WSON|8","900 MHz Fully Differential Amplifier with Output Limiting Clamp"]
["LMH6554",1,52,4.7,5.25,1,1800,2800,2500,6200,0.9,11,3,75000,1.25,1.25,1.32,1.32,1.1499999999999999,1.1499999999999999,150,"-40 to 125","https://www.ti.com/product/LMH6554","Fully Differential ADC Driver,\nCurrent FB,\nBipolar","UQFN|14","2.8 GHz Ultra Linear Fully Differential Amplifier"]
["LMP8350",1,18,5,12,1,118,118,118,507,4.5999999999999996,1.7,4,2000,1.2,1.2,1.8,1.8,0.86,0.86,36,"-40 to 85","https://www.ti.com/product/LMP8350","Fully Differential ADC Driver,\nBipolar","SOIC|8","Ultra Low Distortion Fully Differential Precision ADC Driver with Selectable Power Modes"]
["OPA1637@5V",1,0.95,3,25,1,2.5,7,9.1999999999999993,15,3.7,0.3,0.2,2,1,1,1,1,0.1,0.1,31,"-40 to 125","https://www.ti.com/product/OPA1637","Bipolar","VSSOP|8","High-fidelity, high-voltage (36-V), low-noise (3.7-nV/rtHz) Burr-Brown™ audio fully-differential amp"]
["OPA1637@36V",1,0.95,15,36,1,2.5,7,9.1999999999999993,15,3.7,0.3,0.2,2,1,1,2,2,0.23,0.23,31,"-40 to 125","https://www.ti.com/product/OPA1637","Bipolar","VSSOP|8","High-fidelity, high-voltage (36-V), low-noise (3.7-nV/rtHz) Burr-Brown™ audio fully-differential amp"]
["OPA862",1,3.1,3,12.6,2,42,44,400,140,2.2999999999999998,0.9,0.32500000000000001,3100,0.5,1.1000000000000001,1.3,1.1000000000000001,0.25,0.25,60,"-40 to 125","https://www.ti.com/product/OPA862","Differential Amplifier,\nHigh Input Impedance,\nBipolar","SOIC|8, WSON|8","12.6V, Low-noise, single-ended-to-differential, high input impedance amplifier"]
["THP210@5V",1,0.95,3,25,1,2.4,7,9.1999999999999993,15,3.7,0.3,0.04,2,1,1,1,1,1,0.1,31,"-40 to 125","https://www.ti.com/product/THP210","Bipolar","SOIC|8, VSSOP|8","High precision (40-μV, 0.1μV/C), high-voltage (36-V), low-noise (3.7-nV/√Hz), fully-differential amp"]
["THP210@36V",1,0.95,15,36,1,2.4,7,9.1999999999999993,15,3.7,0.3,0.04,2,1,1,2,2,0.23,0.23,31,"-40 to 125","https://www.ti.com/product/THP210","Bipolar","SOIC|8, VSSOP|8","High precision (40-μV, 0.1μV/C), high-voltage (36-V), low-noise (3.7-nV/√Hz), fully-differential amp"]
["THS4120",1,11,3,3.5,1,100,100,100,55,5.4,1E-3,8,1.1999999999999999E-3,0.65,0.1,0,1.65,0.25,0.25,25,"-40 to 85,\n0 to 70","https://www.ti.com/product/THS4120","Fully Differential ADC Driver,\nHigh Input Impedance","HVSSOP|8, SOIC|8, VSSOP|8","3.3 V, 100 MHz, 43 V/us, Fully Differential CMOS Amplifier w/Shutdown"]
["THS4121",1,11,3,3.5,1,100,100,100,55,5.4,1E-3,8,1.1999999999999999E-3,0.65,0.1,0,1.65,0.25,0.25,25,"-40 to 85,\n0 to 70","https://www.ti.com/product/THS4121","Fully Differential ADC Driver,\nHigh Input Impedance","HVSSOP|8, SOIC|8, VSSOP|8","3.3 V, 100 MHz, 43 V/us, Fully Differential CMOS Amplifier"]
["THS4130@5V",1,12.3,4,10,1,60,150,170,52,1.3,1,2,6,1.23,0.7,1,1,1.2,1.2,45,"-40 to 85,\n0 to 70","https://www.ti.com/product/THS4130","Fully Differential ADC Driver,\nBipolar","HVSSOP|8, SOIC|8, VSSOP|8","150MHz, Fully Differential Input/Output Low Noise Amplifier With Shutdown"]
["THS4130@10V",1,12.3,5,25,1,60,150,170,52,1.3,1,2,6,1.23,0.7,1,2,1.3,1.3,55,"-40 to 85,\n0 to 70","https://www.ti.com/product/THS4130","Fully Differential ADC Driver,\nBipolar","HVSSOP|8, SOIC|8, VSSOP|8","150MHz, Fully Differential Input/Output Low Noise Amplifier With Shutdown"]
["THS4130@30V",1,15,15,33,1,75,150,170,52,1.3,1,2,6,1.23,0.7,3,3,4.5,4.5,85,"-40 to 85,\n0 to 70","https://www.ti.com/product/THS4130","Fully Differential ADC Driver,\nBipolar","HVSSOP|8, SOIC|8, VSSOP|8","150MHz, Fully Differential Input/Output Low Noise Amplifier With Shutdown"]
["THS4131@5V",1,12.3,4,10,1,60,150,170,52,1.3,1,2,6,1.23,0.7,1,1,1.2,1.2,45,"-40 to 85,\n0 to 70","https://www.ti.com/product/THS4131","Fully Differential ADC Driver,\nBipolar","HVSSOP|8, SOIC|8, VSSOP|8","Fully Differential Input/Output Low Noise Amplifier"]
["THS4131@10V",1,12.3,5,25,1,60,150,170,52,1.3,1,2,6,1.23,0.7,1,2,1.3,1.3,55,"-40 to 85,\n0 to 70","https://www.ti.com/product/THS4131","Fully Differential ADC Driver,\nBipolar","HVSSOP|8, SOIC|8, VSSOP|8","Fully Differential Input/Output Low Noise Amplifier"]
["THS4131@30V",1,15,15,33,1,75,150,170,52,1.3,1,2,6,1.23,0.7,3,3,4.5,4.5,85,"-40 to 85,\n0 to 70","https://www.ti.com/product/THS4131","Fully Differential ADC Driver,\nBipolar","HVSSOP|8, SOIC|8, VSSOP|8","Fully Differential Input/Output Low Noise Amplifier"]
["THS4140@5V",1,13.2,4,10,1,150,160,170,450,6.5,1.25,7,15000,1.23,0.7,1,1,1.2,1.2,45,"-40 to 85,\n0 to 70","https://www.ti.com/product/THS4140","Fully Differential ADC Driver,\nBipolar","HVSSOP|8, SOIC|8, VSSOP|8","160MHz, Fully Differential Input/Output High Slew Rate Amplifier With Shutdown"]
["THS4140@10V",1,13.2,5,25,1,150,160,170,450,6.5,1.25,7,15000,1.23,0.7,2,2,1.3,1.3,60,"-40 to 85,\n0 to 70","https://www.ti.com/product/THS4140","Fully Differential ADC Driver,\nBipolar","HVSSOP|8, SOIC|8, VSSOP|8","160MHz, Fully Differential Input/Output High Slew Rate Amplifier With Shutdown"]
["THS4140@30V",1,15,15,33,1,150,160,170,450,6.5,1.25,7,15000,1.23,0.7,3,3,3,3,85,"-40 to 85,\n0 to 70","https://www.ti.com/product/THS4140","Fully Differential ADC Driver,\nBipolar","HVSSOP|8, SOIC|8, VSSOP|8","160MHz, Fully Differential Input/Output High Slew Rate Amplifier With Shutdown"]
["THS4141@5V",1,13.2,4,10,1,150,160,170,450,6.5,1.25,7,15000,1.23,0.7,1,1,1.2,1.2,45,"0 to 70,\n-40 to 85","https://www.ti.com/product/THS4141","Fully Differential ADC Driver,\nBipolar","HVSSOP|8, SOIC|8, VSSOP|8","160MHz, Fully Differential Input/Output High Slew Rate Amplifier"]
["THS4141@10V",1,13.2,5,25,1,150,160,170,450,6.5,1.25,7,15000,1.23,0.7,2,2,1.3,1.3,60,"0 to 70,\n-40 to 85","https://www.ti.com/product/THS4141","Fully Differential ADC Driver,\nBipolar","HVSSOP|8, SOIC|8, VSSOP|8","160MHz, Fully Differential Input/Output High Slew Rate Amplifier"]
["THS4141@30V",1,15,15,33,1,150,160,170,450,6.5,1.25,7,15000,1.23,0.7,3,3,3,3,85,"0 to 70,\n-40 to 85","https://www.ti.com/product/THS4141","Fully Differential ADC Driver,\nBipolar","HVSSOP|8, SOIC|8, VSSOP|8","160MHz, Fully Differential Input/Output High Slew Rate Amplifier"]
["THS4150@5V",1,15.8,4,10,1,150,150,150,650,7.6,1.78,7,15000,1.5,1.5,1,1,1.2,1.2,45,"-40 to 85,\n0 to 70","https://www.ti.com/product/THS4150","Fully Differential ADC Driver,\nBipolar","HVSSOP|8, SOIC|8","150MHz, Fully Differential Input/Output High Slew Rate Amplifier With Shutdown"]
["THS4150@10V",1,15.8,5,25,1,150,150,150,650,7.6,1.78,7,15000,1.5,1.5,2,2,1.3,1.3,60,"-40 to 85,\n0 to 70","https://www.ti.com/product/THS4150","Fully Differential ADC Driver,\nBipolar","HVSSOP|8, SOIC|8","150MHz, Fully Differential Input/Output High Slew Rate Amplifier With Shutdown"]
["THS4150@30V",1,17.5,15,33,1,150,150,150,650,7.6,1.78,7,15000,1.5,1.5,3,3,3.4,3.4,85,"-40 to 85,\n0 to 70","https://www.ti.com/product/THS4150","Fully Differential ADC Driver,\nBipolar","HVSSOP|8, SOIC|8","150MHz, Fully Differential Input/Output High Slew Rate Amplifier With Shutdown"]
["THS4151@5V",1,15.8,4,10,1,150,150,150,650,7.6,1.78,7,15000,1.5,1.5,1,1,1.2,1.2,45,"0 to 70,\n-40 to 85","https://www.ti.com/product/THS4151","Fully Differential ADC Driver,\nBipolar","HVSSOP|8, SOIC|8, VSSOP|8","150MHz, Fully Differential Input/Output High Slew Rate Amplifier"]
["THS4151@10V",1,15.8,5,25,1,150,150,150,650,7.6,1.78,7,15000,1.5,1.5,2,2,1.3,1.3,60,"0 to 70,\n-40 to 85","https://www.ti.com/product/THS4151","Fully Differential ADC Driver,\nBipolar","HVSSOP|8, SOIC|8, VSSOP|8","150MHz, Fully Differential Input/Output High Slew Rate Amplifier"]
["THS4151@30V",1,17.5,15,33,1,150,150,150,650,7.6,1.78,7,15000,1.5,1.5,3,3,3.4,3.4,85,"0 to 70,\n-40 to 85","https://www.ti.com/product/THS4151","Fully Differential ADC Driver,\nBipolar","HVSSOP|8, SOIC|8, VSSOP|8","150MHz, Fully Differential Input/Output High Slew Rate Amplifier"]
["THS4500",1,23,4.5,15,1,220,370,300,2800,7,1.7,7,4.5999999999999996,-0.4,2.7,1.3,1.3,1.2,1.2,120,"-40 to 85,\n0 to 70","https://www.ti.com/product/THS4500","Fully Differential ADC Driver,\nBipolar","HVSSOP|8, SOIC|8, VSSOP|8","15V,  High-Speed Fully Differential Amplifier with power-down"]
["THS4501",1,23,4.5,15,1,220,370,300,2800,7,1.7,7,4.5999999999999996,-0.4,2.7,1.3,1.3,1.2,1.2,120,"-40 to 85,\n0 to 70","https://www.ti.com/product/THS4501","Fully Differential ADC Driver,\nBipolar","HVSSOP|8, SOIC|8, VSSOP|8","High-Speed Fully Differential Amplifier, +/-5 V"]
["THS4503",1,23,4.5,15,1,220,370,300,2800,6.8,1.7,4,4.5999999999999996,1.3,1.3,1.3,1.3,1.2,1.2,120,"0 to 70,\n-40 to 85","https://www.ti.com/product/THS4503","Fully Differential ADC Driver,\nBipolar","HVSSOP|8, SOIC|8, VSSOP|8","High-Speed Fully-Differential Amplifiers"]
["THS4504",1,16,4.5,15,1,250,260,210,1800,8,2,7,4,-0.4,2.7,1.3,1.3,1.2,1.2,130,"-40 to 85","https://www.ti.com/product/THS4504","Fully Differential ADC Driver,\nBipolar","HVSSOP|8, SOIC|8, VSSOP|8","Wideband, Low Distortion Fully Differential Amplifier with Shutdown"]
["THS4505",1,16,4.5,15,1,250,260,210,1800,8,2,7,4,-0.4,2.7,1.3,1.3,1.2,1.2,130,"-40 to 85","https://www.ti.com/product/THS4505","Fully Differential ADC Driver,\nBipolar","HVSSOP|8, SOIC|8, VSSOP|8","Wideband, Low-Distortion Fully Differential Amplifier"]
["THS4508",1,39.200000000000003,3.75,5.25,2,1500,2000,3000,6400,2.2999999999999998,2.9,4,8000,-0.3,1.2,1.25,1.25,1.3,1.3,96,"-40 to 85","https://www.ti.com/product/THS4508","Fully Differential ADC Driver,\nBipolar","VQFN|16","Wideband Fully Differential Amplifier"]
["THS4509",1,37.700000000000003,3,5.25,2,1500,2000,3000,6600,1.9,2.2000000000000002,4,8000,1.2,1.2,1,1,1.3,1.3,96,"-40 to 85","https://www.ti.com/product/THS4509","Fully Differential ADC Driver,\nBipolar","VQFN|16","1.9-GHz, Wideband, Low-Noise, Low-Distortion, Fully-Differential Amplifier"]
["THS4511",1,39.200000000000003,3.75,5.25,1,1350,1600,2000,4900,2,1.5,4,8000,-0.3,2.7,1.25,1.25,1.3,1.3,96,"-40 to 85","https://www.ti.com/product/THS4511","Fully Differential ADC Driver,\nBipolar","VQFN|16","1.6-GHz, unity-gain stable, wideband, low-noise, low distortion fully differential amplifier"]
["THS4513",1,37.700000000000003,3,5.5,1,1400,1600,2800,5100,2.2000000000000002,1.7,4,8000,1.1000000000000001,1.1000000000000001,1,1,1.3,1.3,96,"-40 to 85","https://www.ti.com/product/THS4513","Fully Differential ADC Driver,\nBipolar","VQFN|16","1.6-GHz, min gain 1-V/V, low-noise, low distortion fully differential amplifier"]
["THS4520",1,14.2,3,5.25,1,132,620,1200,570,2,2,2.5,6500,1.2,0.75,1,1,1.2,0.55000000000000004,105,"-40 to 85","https://www.ti.com/product/THS4520","Fully Differential ADC Driver,\nBipolar","VQFN|16","Rail-to-Rail Output Wideband Fully Differential Amplifier"]
["THS4521",1,1.1399999999999999,2.5,5.5,1,145,145,95,490,4.5999999999999996,0.6,2,650,-0.1,1.4,1,1,0.15,0.3,55,"-40 to 85","https://www.ti.com/product/THS4521","Fully Differential ADC Driver,\nBipolar","SOIC|8, VSSOP|8","Very low power rail-to-rail output fully differential amplifier"]
["THS4522",2,1.1399999999999999,2.5,5.5,1,145,145,95,490,4.5999999999999996,0.6,2,650,-0.1,1.4,1,1,0.15,0.3,55,"-40 to 85","https://www.ti.com/product/THS4522","Fully Differential ADC Driver,\nBipolar","TSSOP|16","Very low power dual channel rail-to-rail output fully differential amplifier"]
["THS4524",4,1.1399999999999999,2.5,5.5,1,145,145,95,490,4.5999999999999996,0.6,2,650,-0.1,1.4,1,1,0.15,0.3,55,"-40 to 85","https://www.ti.com/product/THS4524","Fully Differential ADC Driver,\nBipolar","TSSOP|38","Very low power quad channel rail-to-rail output fully differential amplifier"]
["THS4531",1,0.25,2.5,5.5,1,34,36,30,220,10,0.25,1,210,0,1.2,0.95,1,0.2,0.2,26,"-40 to 125","https://www.ti.com/product/THS4531","Fully Differential ADC Driver,\nBipolar","QFN|10, SOIC|8, VSSOP|8","Ultra low power 0.25mA, RRO, fully differential amplifier"]
["THS4531A",1,0.25,2.5,5.5,1,34,36,27,220,10,0.25,0.4,250,0,1.2,0.95,1,0.2,0.2,26,"-40 to 125","https://www.ti.com/product/THS4531A","Fully Differential ADC Driver,\nBipolar","QFN|10, SOIC|8, VSSOP|8","Ultra Low Power, RRO, Fully-Differential Amplifier"]
["THS4532",2,0.25,2.5,5.5,1,34,36,27,220,10,0.25,0.4,250,0,1.2,0.95,1,0.2,0.25,26,"-40 to 125","https://www.ti.com/product/THS4532","Fully Differential ADC Driver,\nBipolar","TSSOP|16","Dual, Ultra low power 0.25mA, RRO, fully differential amplifier"]
["THS4541",1,10.1,2.7,5.4,1,340,620,850,1500,2.2000000000000002,1.9,0.45,10000,-0.1,1.3,0.88,1.1000000000000001,0.25,0.25,100,"-40 to 125","https://www.ti.com/product/THS4541","Fully Differential ADC Driver,\nBipolar","QFN|10, VQFN|16","High-Speed Differential I/O Amplifier"]
["THS4551",1,1.35,2.7,5.4,1,75,150,135,220,3.3,0.5,0.17499999999999999,1500,-0.1,1.2,0.55000000000000004,1.2,0.23,0.23,45,"-40 to 125","https://www.ti.com/product/THS4551","Fully Differential ADC Driver,\nBipolar","QFN|10, VQFN|16, VSSOP|8","Low Noise, Precision, 150MHz, Fully Differential Amplifier"]
["THS4552",2,1.37,2.7,5.4,1,75,150,135,220,3.3,0.5,0.26500000000000001,1500,-0.1,1.2,0.55000000000000004,1.2,0.23,0.23,65,"-40 to 125","https://www.ti.com/product/THS4552","Fully Differential ADC Driver,\nBipolar","TSSOP|16, WQFN|24","Dual Channel, Low-Noise, Precision, 150-MHz, Fully Differential Amplifier"]
["THS4561",1,0.78,2.85,12.6,1,20,60,60,230,4,0.35,0.25,600,0,1.2,0.5,1.2,0.25,0.25,27,"-40 to 125","https://www.ti.com/product/THS4561","Fully Differential ADC Driver,\nBipolar","QFN|10, VQFN|16, VSSOP|8","Low-power, 60-MHz, wide-supply-range fully differential amplifier"]
["THS4567",1,2,3.3,6,10,28,70,220,500,4.2,0.01,10,0.02,0.2,1.85,1,1,0.25,0.25,20,"-40 to 125","https://www.ti.com/product/THS4567","Fully Differential ADC Driver,\nHigh Input Impedance","QFN|10","220-MHz CMOS input fully differential amplifier with VICM and VOCM control"]
["THS770006",1,100,4.75,5.25,2,780,2400,2400,3200,1.7,0,5,0,2.25,2.25,2.25,2.25,1.4,1.36,80,"-40 to 85","https://www.ti.com/product/THS770006","Fully Differential ADC Driver, Fixed Gain/Buffer, Bipolar","VQFN|24","High-Speed Fully Differential ADC Driver Amplifier with +6dB Fixed Gain"]